fUST/lending_fUST_20250101
["ID","MTS","AMOUNT","RATE_DAILY","PERIOD"]
[347291910,1735662635224,-500.0,0.00019178,2]
[347291911,1735662635234,-500.0,0.00019178,2]
[347291912,1735662635243,-500.0,0.00019178,2]
[347291913,1735662635255,-500.0,0.00019178,2]
[347291914,1735662635264,-500.0,0.00019178,2]
[347291915,1735662635273,-500.0,0.00019178,2]
[347291916,1735662635281,-500.0,0.00019178,2]
[347291917,1735662635291,-195.10596522,0.00019178,2]
[347291918,1735662635300,-500.0,0.00019178,2]
[347291919,1735662635309,-500.0,0.00019178,2]
[347291920,1735662635319,-500.0,0.00019178,2]
[347291921,1735662635328,-500.0,0.00019178,2]
[347291922,1735662635337,-500.0,0.00019178,2]
[347291923,1735662635347,-1257.65,0.00019178,2]
[347291924,1735662635357,-518.21466965,0.00019178,2]
[347291925,1735662635366,-500.0,0.00019178,2]
[347291926,1735662635375,-500.0,0.00019178,2]
[347291927,1735662635384,-500.0,0.00019178,2]
[347291928,1735662635393,-716.23,0.00019178,2]
[347291929,1735662635403,-963.36,0.00019178,2]
[347291930,1735662635412,-500.0,0.00019178,2]
[347291931,1735662635421,-500.0,0.00019178,2]
[347291932,1735662635431,-500.0,0.00019178,2]
[347291933,1735662635440,-500.0,0.00019178,2]
[347291934,1735662635449,-500.0,0.00019178,2]
[347291935,1735662635459,-500.0,0.00019178,2]
[347291936,1735662635468,-500.0,0.00019178,2]
[347291937,1735662635477,-500.0,0.00019178,2]
[347291938,1735662635486,-500.0,0.00019178,2]
[347291939,1735662635495,-500.0,0.00019178,2]
[347291940,1735662635507,-239.60298842,0.00019178,2]
[347291941,1735662635516,-500.0,0.00019178,2]
[347291942,1735662635526,-500.0,0.00019178,2]
[347291943,1735662635535,-188.0,0.00019178,2]
[347291944,1735662635546,-1742.86,0.00019178,2]
[347291945,1735662635556,-500.0,0.00019178,2]
[347291946,1735662635566,-500.0,0.00019178,2]
[347291947,1735662635575,-500.0,0.00019178,2]
[347291948,1735662635585,-500.0,0.00019178,2]
[347291949,1735662635595,-500.0,0.00019178,2]
[347291950,1735662635604,-856.35,0.00019178,2]
[347291951,1735662635614,-500.0,0.00019178,2]
[347291952,1735662635623,-500.0,0.00019178,2]
[347291953,1735662635632,-150.43686423,0.00019178,2]
[347291954,1735662635642,-500.0,0.00019178,2]
[347291955,1735662635651,-500.0,0.00019178,2]
[347291956,1735662635660,-500.0,0.00019178,2]
[347291957,1735662635670,-2257.94,0.00019178,2]
[347291958,1735662635679,-500.0,0.00019178,2]
[347291959,1735662635688,-500.0,0.00019178,2]
[347291960,1735662635697,-503.58149186,0.00019178,2]
[347291961,1735662635706,-500.0,0.00019178,2]
[347291962,1735662635716,-500.0,0.00019178,2]
[347291963,1735662635725,-1434.36,0.00019178,2]
[347291964,1735662635735,-500.0,0.00019178,2]
[347291965,1735662635744,-500.0,0.00019178,2]
[347291966,1735662635754,-500.0,0.00019178,2]
[347291967,1735662635767,-2488.22,0.00019178,2]
[347291968,1735662635775,-500.0,0.00019178,2]
[347291969,1735662635784,-500.0,0.00019178,2]
[347291970,1735662635794,-500.0,0.00019178,2]
[347291971,1735662635804,-500.0,0.00019178,2]
[347291972,1735662635813,-500.0,0.00019178,2]
[347291973,1735662635822,-500.0,0.00019178,2]
[347291974,1735662635831,-1740.67,0.00019178,2]
[347291975,1735662635842,-500.0,0.00019178,2]
[347291976,1735662635851,-588.38968201,0.00019178,2]
[347291977,1735662635860,-500.0,0.00019178,2]
[347291978,1735662635869,-539.03,0.00019178,2]
[347291979,1735662635879,-500.0,0.00019178,2]
[347291980,1735662635889,-500.0,0.00019178,2]
[347291981,1735662635899,-1044.99,0.00019178,2]
[347291982,1735662635908,-1735.88,0.00019178,2]
[347291983,1735662635917,-297.85768113,0.00019178,2]
[347291984,1735662635929,-500.0,0.00019178,2]
[347291985,1735662635938,-500.0,0.00019178,2]
[347291986,1735662635948,-500.0,0.00019178,2]
[347291987,1735662635957,-500.0,0.00019178,2]
[347291988,1735662635967,-500.0,0.00019178,2]
[347291989,1735662635976,-500.0,0.00019178,2]
[347291990,1735662635985,-1193.26,0.00019178,2]
[347291991,1735662635995,-500.0,0.00019178,2]
[347291992,1735662636006,-500.0,0.00019178,2]
[347291993,1735662636015,-930.72,0.00019178,2]
[347291994,1735662636025,-500.0,0.00019178,2]
[347291995,1735662636034,-500.0,0.00019178,2]
[347291996,1735662636043,-938.16,0.00019178,2]
[347291997,1735662636053,-730.35,0.00019178,2]
[347291998,1735662636062,-500.0,0.00019178,2]
[347291999,1735662636072,-1142.17,0.00019178,2]
[347292000,1735662636081,-1023.34,0.00019178,2]
[347292001,1735662636091,-500.0,0.00019178,2]
[347292002,1735662636100,-661.46,0.00019178,2]
[347292003,1735662636110,-500.0,0.00019178,2]
[347292004,1735662636119,-500.0,0.00019178,2]
[347292005,1735662636129,-1070.42,0.00019178,2]
[347292006,1735662636139,-1262.96,0.00019178,2]
[347292007,1735662636149,-500.0,0.00019178,2]
[347292008,1735662636158,-500.0,0.00019178,2]
[347292009,1735662636168,-500.0,0.00019178,2]
[347292010,1735662636177,-500.0,0.00019178,2]
[347292011,1735662636187,-500.0,0.00019178,2]
[347292012,1735662636196,-500.0,0.00019178,2]
[347292013,1735662636206,-589.92,0.00019178,2]
[347292014,1735662636215,-1803.17,0.00019178,2]
[347292015,1735662636225,-500.0,0.00019178,2]
[347292016,1735662636235,-500.0,0.00019178,2]
[347292017,1735662636245,-500.0,0.00019178,2]
[347292018,1735662636256,-500.0,0.00019178,2]
[347292019,1735662636266,-500.0,0.00019178,2]
[347292020,1735662636275,-3968.83,0.00019178,2]
[347292021,1735662636285,-1255.69,0.00019178,2]
[347292022,1735662636295,-500.0,0.00019178,2]
[347292023,1735662636304,-500.0,0.00019178,2]
[347292024,1735662636313,-261.58879898,0.00019178,2]
[347292025,1735662636322,-500.0,0.00019178,2]
[347292026,1735662636332,-500.0,0.00019178,2]
[347292027,1735662636341,-378.41236161,0.00019178,2]
[347292028,1735662636350,-1236.91,0.00019178,2]
[347292029,1735662636359,-503.53415355,0.00019178,2]
[347292030,1735662636368,-504.87405431,0.00019178,2]
[347292031,1735662636377,-500.0,0.00019178,2]
[347292032,1735662636387,-500.0,0.00019178,2]
[347292033,1735662636397,-500.0,0.00019178,2]
[347292034,1735662636406,-502.99853305,0.00019178,2]
[347292035,1735662636415,-500.0,0.00019178,2]
[347292036,1735662636424,-500.0,0.00019178,2]
[347292037,1735662636434,-514.34,0.00019178,2]
[347292038,1735662636444,-1076.36,0.00019178,2]
[347292039,1735662636453,-500.0,0.00019178,2]
[347292040,1735662636463,-500.0,0.00019178,2]
[347292041,1735662636472,-500.0,0.00019178,2]
[347292042,1735662636482,-500.0,0.00019178,2]
[347292043,1735662636491,-500.0,0.00019178,2]
[347292044,1735662636502,-1079.59,0.00019178,2]
[347292045,1735662636511,-500.0,0.00019178,2]
[347292046,1735662636522,-500.0,0.00019178,2]
[347292047,1735662636531,-500.0,0.00019178,2]
[347292048,1735662636541,-500.0,0.00019178,2]
[347292049,1735662636551,-500.0,0.00019178,2]
[347292050,1735662636560,-500.0,0.00019178,2]
[347292051,1735662636571,-507.81344998,0.00019178,2]
[347292052,1735662636580,-562.62,0.00019178,2]
[347292053,1735662636590,-500.0,0.00019178,2]
[347292054,1735662636599,-500.0,0.00019178,2]
[347292055,1735662636609,-989.65,0.00019178,2]
[347292056,1735662636619,-500.0,0.00019178,2]
[347292057,1735662636628,-500.0,0.00019178,2]
[347292058,1735662636638,-2103.77,0.00019178,2]
[347292059,1735662636647,-501.36039727,0.00019178,2]
[347292060,1735662636657,-500.0,0.00019178,2]
[347292061,1735662636667,-874.7,0.00019178,2]
[347292062,1735662636676,-530.40897516,0.00019178,2]
[347292063,1735662636685,-7064.59,0.00019178,2]
[347292064,1735662636695,-500.0,0.00019178,2]
[347292065,1735662636704,-2550.38,0.00019178,2]
[347292066,1735662636714,-1088.36,0.00019178,2]
[347292067,1735662636723,-500.0,0.00019178,2]
[347292068,1735662636733,-500.0,0.00019178,2]
[347292069,1735662636742,-500.0,0.00019178,2]
[347292070,1735662636752,-335.05521016,0.00019178,2]
[347292071,1735662636764,-500.0,0.00019178,2]
[347292072,1735662636774,-500.0,0.00019178,2]
[347292073,1735662636783,-660.49,0.00019178,2]
[347292074,1735662636792,-500.0,0.00019178,2]
[347292075,1735662636803,-500.0,0.00019178,2]
[347292076,1735662636812,-2577.05,0.00019178,2]
[347292077,1735662636821,-31125.36294567,0.00019178,2]
[347292078,1735662636843,-17412.91005038,0.00019178,2]
[347292079,1735662636859,-8435.04514658,0.00019178,2]
[347292080,1735662636870,-173.71185737,0.00019178,2]
[347292081,1735662636879,-500.0,0.00019178,2]
[347292082,1735662636889,-500.0,0.00019178,2]
[347292083,1735662636898,-1172.76391662,0.00019178,2]
[347292084,1735662636910,-994.20608338,0.00019178,2]
[347292085,1735662636919,-500.0,0.00019178,2]
[347292086,1735662636929,-1475.83,0.00019178,2]
[347292087,1735662636938,-500.0,0.00019178,2]
[347292088,1735662637041,-500.0,0.00019178,2]
[347292089,1735662637050,-389.35225292,0.00019178,2]
[347292095,1735662638648,-264.81832778,0.00019178,2]
[347292096,1735662638660,-362.1794193,0.00019178,2]
[347292097,1735662638669,-581.96,0.00019178,2]
[347292098,1735662638678,-603.77,0.00019178,2]
[347292099,1735662638687,-1525.37,0.00019178,2]
[347292100,1735662638696,-500.0,0.00019178,2]
[347292101,1735662638706,-500.0,0.00019178,2]
[347292102,1735662638716,-500.0,0.00019178,2]
[347292103,1735662638725,-503.37256293,0.00019178,2]
[347292104,1735662638734,-500.0,0.00019178,2]
[347292105,1735662638743,-500.0,0.00019178,2]
[347292106,1735662638753,-993.47,0.00019178,2]
[347292108,1735662638768,-399.46814351,0.00019178,2]
[347292110,1735662638778,-522.07,0.00019178,2]
[347292112,1735662638787,-505.31059276,0.00019178,2]
[347292114,1735662638796,-1506.03,0.00019178,2]
[347292116,1735662638806,-575.2,0.00019178,2]
[347292118,1735662638815,-386.66109819,0.00019178,2]
[347292120,1735662638824,-500.0,0.00019178,2]
[347292122,1735662638833,-513.28845624,0.00019178,2]
[347292124,1735662638843,-1121.02,0.00019178,2]
[347292126,1735662638852,-500.0,0.00019178,2]
[347292128,1735662638861,-5314.68,0.00019178,2]
[347292130,1735662638870,-505.17298432,0.00019178,2]
[347292132,1735662638880,-500.0,0.00019178,2]
[347292135,1735662638890,-500.0,0.00019178,2]
[347292138,1735662638899,-500.0,0.00019178,2]
[347292140,1735662638908,-500.0,0.00019178,2]
[347292142,1735662638917,-1035.64,0.00019178,2]
[347292144,1735662638926,-261.67804982,0.00019178,2]
[347292146,1735662638935,-500.0,0.00019178,2]
[347292148,1735662638944,-500.0,0.00019178,2]
[347292150,1735662638954,-500.0,0.00019178,2]
[347292152,1735662638963,-588.51,0.00019178,2]
[347292154,1735662638972,-500.0,0.00019178,2]
[347292156,1735662638981,-500.0,0.00019178,2]
[347292158,1735662638990,-500.0,0.00019178,2]
[347292160,1735662639000,-500.0,0.00019178,2]
[347292162,1735662639009,-4021.99,0.00019178,2]
[347292164,1735662639018,-500.0,0.00019178,2]
[347292166,1735662639027,-500.0,0.00019178,2]
[347292168,1735662639037,-500.0,0.00019178,2]
[347292170,1735662639046,-500.0,0.00019178,2]
[347292172,1735662639055,-500.0,0.00019178,2]
[347292174,1735662639064,-689.25,0.00019178,2]
[347292176,1735662639073,-500.0,0.00019178,2]
[347292178,1735662639082,-548.01,0.00019178,2]
[347292180,1735662639091,-500.0,0.00019178,2]
[347292182,1735662639101,-500.0,0.00019178,2]
[347292184,1735662639110,-500.0,0.00019178,2]
[347292186,1735662639119,-216.94715489,0.00019178,2]
[347292189,1735662639129,-500.0,0.00019178,2]
[347292191,1735662639138,-315.22166014,0.00019256,2]
[347292193,1735662639147,-697.443,0.0001926,2]
[347292195,1735662639157,-153.0,0.00019315,2]
[347292197,1735662639166,-315.22166014,0.00019434,2]
[347292199,1735662639175,-291.49637281,0.00019451,2]
[347292201,1735662639184,-601.0055001,0.00019451,2]
[347292203,1735662639194,-500.0,0.00019452,3]
[347292205,1735662639203,-676.79,0.00019452,3]
[347292207,1735662639213,-500.0,0.00019452,3]
[347292209,1735662639222,-500.0,0.00019452,2]
[347292211,1735662639231,-500.0,0.00019452,3]
[347292213,1735662639241,-500.0,0.00019452,3]
[347292215,1735662639253,-500.0,0.00019452,3]
[347292217,1735662639262,-500.0,0.00019452,3]
[347292219,1735662639273,-500.0,0.00019452,3]
[347292221,1735662639282,-640.84134407,0.00019452,3]
[347292223,1735662639291,-500.0,0.00019452,3]
[347292225,1735662639301,-500.0,0.00019452,3]
[347292227,1735662639310,-500.0,0.00019452,3]
[347292229,1735662639319,-500.0,0.00019452,3]
[347292231,1735662639329,-732.46,0.00019452,3]
[347292233,1735662639338,-500.0,0.00019452,3]
[347292235,1735662639347,-508.25873549,0.00019452,3]
[347292237,1735662639358,-500.0,0.00019452,3]
[347292239,1735662639367,-500.0,0.00019452,3]
[347292241,1735662639376,-500.0,0.00019452,3]
[347292243,1735662639385,-500.0,0.00019452,3]
[347292245,1735662639395,-500.0,0.00019452,3]
[347292247,1735662639405,-500.0,0.00019452,3]
[347292249,1735662639414,-500.0,0.00019452,3]
[347292251,1735662639424,-500.0,0.00019452,3]
[347292253,1735662639433,-500.0,0.00019452,3]
[347292255,1735662639442,-530.17017517,0.00019452,3]
[347292257,1735662639451,-822.0,0.00019452,3]
[347292259,1735662639461,-500.0,0.00019452,3]
[347292261,1735662639470,-500.0,0.00019452,3]
[347292263,1735662639480,-500.0,0.00019452,3]
[347292265,1735662639489,-722.21,0.00019452,3]
[347292267,1735662639499,-500.0,0.00019452,3]
[347292269,1735662639512,-500.0,0.00019452,3]
[347292271,1735662639524,-653.4,0.00019452,3]
[347292273,1735662639533,-407.4638469,0.00019452,3]
[347292275,1735662639544,-500.0,0.00019452,3]
[347292277,1735662639555,-500.0,0.00019452,3]
[347292279,1735662639564,-500.0,0.00019452,3]
[347292281,1735662639574,-500.0,0.00019452,3]
[347292283,1735662639585,-500.0,0.00019452,3]
[347292285,1735662639594,-153.1686384,0.00019452,3]
[347292287,1735662639603,-500.0,0.00019452,3]
[347292289,1735662639614,-500.0,0.00019452,3]
[347292291,1735662639624,-500.0,0.00019452,3]
[347292293,1735662639633,-500.0,0.00019452,3]
[347292295,1735662639642,-500.0,0.00019452,3]
[347292297,1735662639652,-680.61,0.00019452,3]
[347292299,1735662639662,-500.0,0.00019452,3]
[347292301,1735662639676,-500.0,0.00019452,3]
[347292303,1735662639688,-494.5,0.00019452,3]
[347292305,1735662639697,-500.0,0.00019452,3]
[347292307,1735662639711,-500.0,0.00019452,3]
[347292309,1735662639725,-510.12415604,0.00019452,3]
[347292311,1735662639735,-1080.08,0.00019452,3]
[347292313,1735662639744,-500.0,0.00019452,3]
[347292315,1735662639757,-500.0,0.00019452,3]
[347292317,1735662639767,-500.0,0.00019452,3]
[347292319,1735662639776,-500.0,0.00019452,3]
[347292321,1735662639785,-500.0,0.00019452,3]
[347292323,1735662639795,-500.0,0.00019452,3]
[347292325,1735662639804,-500.0,0.00019452,3]
[347292327,1735662639813,-500.0,0.00019452,3]
[347292328,1735662639822,-500.0,0.00019452,3]
[347292330,1735662639832,-500.0,0.00019452,3]
[347292332,1735662639841,-509.72166188,0.00019452,3]
[347292334,1735662639851,-500.0,0.00019452,3]
[347292337,1735662639860,-509.609973,0.00019452,3]
[347292338,1735662639869,-500.0,0.00019452,3]
[347292340,1735662639879,-500.0,0.00019452,3]
[347292342,1735662639888,-500.0,0.00019452,3]
[347292344,1735662639898,-500.0,0.00019452,3]
[347292347,1735662639907,-1024.57,0.00019452,3]
[347292349,1735662639917,-606.48072109,0.00019452,3]
[347292350,1735662639927,-500.0,0.00019452,3]
[347292352,1735662639937,-280.68454077,0.00019452,3]
[347292354,1735662639947,-591.71422377,0.00019452,3]
[347292356,1735662639958,-500.0,0.00019452,3]
[347292358,1735662639967,-2010.2,0.00019452,3]
[347292360,1735662639975,-500.0,0.00019452,3]
[347292362,1735662639985,-500.0,0.00019452,3]
[347292364,1735662639994,-7010.34,0.00019452,3]
[347292366,1735662640004,-500.0,0.00019452,3]
[347292368,1735662640013,-500.0,0.00019452,3]
[347292370,1735662640023,-509.40889844,0.00019452,3]
[347292372,1735662640032,-500.0,0.00019452,3]
[347292384,1735662640134,-10949.33,0.00019452,3]
[347292386,1735662640144,-500.0,0.00019452,3]
[347292388,1735662640153,-500.0,0.00019452,3]
[347292390,1735662640163,-500.0,0.00019452,3]
[347292392,1735662640172,-599.72,0.00019452,3]
[347292394,1735662640182,-500.0,0.00019452,3]
[347292396,1735662640191,-503.88529704,0.00019452,3]
[347292398,1735662640200,-1085.45,0.00019452,3]
[347292401,1735662640210,-605.99,0.00019452,3]
[347292403,1735662640219,-441.70720088,0.00019452,3]
[347292405,1735662640229,-629.41,0.00019452,2]
[347292407,1735662640238,-1147.06,0.00019452,3]
[347292409,1735662640247,-500.0,0.00019452,3]
[347292411,1735662640257,-500.0,0.00019452,3]
[347292414,1735662640266,-527.71,0.00019452,3]
[347292416,1735662640276,-628.1552986,0.00019452,3]
[347292418,1735662640286,-500.0,0.00019452,3]
[347292420,1735662640295,-500.0,0.00019452,3]
[347292422,1735662640304,-500.0,0.00019452,3]
[347292424,1735662640314,-500.0,0.00019452,3]
[347292426,1735662640323,-500.0,0.00019452,3]
[347292428,1735662640332,-500.0,0.00019452,3]
[347292430,1735662640341,-500.0,0.00019452,3]
[347292432,1735662640350,-507.94560489,0.00019452,3]
[347292434,1735662640360,-10934.46,0.00019452,3]
[347292436,1735662640369,-570.43,0.00019452,3]
[347292438,1735662640379,-709.83,0.00019452,3]
[347292440,1735662640388,-500.0,0.00019452,3]
[347292442,1735662640398,-500.0,0.00019452,3]
[347292444,1735662640407,-695.57,0.00019452,3]
[347292446,1735662640417,-500.0,0.00019452,3]
[347292448,1735662640426,-500.0,0.00019452,3]
[347292450,1735662640436,-500.0,0.00019452,3]
[347292452,1735662640446,-500.0,0.00019452,3]
[347292454,1735662640456,-500.0,0.00019452,3]
[347292456,1735662640465,-1020.13,0.00019452,3]
[347292458,1735662640475,-500.0,0.00019452,3]
[347292460,1735662640485,-3413.96,0.00019452,3]
[347292462,1735662640494,-500.0,0.00019452,3]
[347292464,1735662640505,-500.0,0.00019452,3]
[347292466,1735662640515,-503.72974484,0.00019452,3]
[347292469,1735662640525,-633.22,0.00019452,3]
[347292470,1735662640534,-500.0,0.00019452,3]
[347292473,1735662640543,-500.0,0.00019452,3]
[347292474,1735662640553,-500.0,0.00019452,3]
[347292476,1735662640562,-1197.53,0.00019452,3]
[347292478,1735662640572,-500.0,0.00019452,3]
[347292480,1735662640581,-500.0,0.00019452,3]
[347292482,1735662640591,-500.0,0.00019452,3]
[347292484,1735662640600,-500.0,0.00019452,3]
[347292486,1735662640609,-668.37,0.00019452,3]
[347292488,1735662640619,-1666.23,0.00019452,3]
[347292490,1735662640628,-1279.41,0.00019452,3]
[347292492,1735662640637,-500.0,0.00019452,3]
[347292494,1735662640647,-330.7807669,0.00019452,3]
[347292496,1735662640656,-500.0,0.00019452,3]
[347292498,1735662640666,-500.0,0.00019452,3]
[347292500,1735662640675,-473.22711507,0.00019452,3]
[347292502,1735662640684,-500.0,0.00019452,3]
[347292504,1735662640694,-500.0,0.00019452,3]
[347292506,1735662640703,-500.0,0.00019452,3]
[347292508,1735662640712,-1508.05,0.00019452,3]
[347292510,1735662640722,-1002.24,0.00019452,3]
[347292512,1735662640731,-243.82362179,0.00019452,3]
[347292514,1735662640740,-500.0,0.00019452,3]
[347292516,1735662640749,-681.96,0.00019452,3]
[347292518,1735662640759,-500.0,0.00019452,3]
[347292520,1735662640773,-616.51982857,0.00019452,3]
[347292522,1735662640785,-500.0,0.00019452,3]
[347292524,1735662640795,-500.0,0.00019452,3]
[347292526,1735662640804,-500.0,0.00019452,3]
[347292528,1735662640813,-500.0,0.00019452,3]
[347292530,1735662640822,-500.0,0.00019452,3]
[347292532,1735662640832,-500.0,0.00019452,3]
[347292534,1735662640841,-500.0,0.00019452,3]
[347292537,1735662640852,-1257.65,0.00019452,3]
[347292538,1735662640863,-500.0,0.00019452,3]
[347292540,1735662640873,-716.23,0.00019452,3]
[347292542,1735662640882,-963.36,0.00019452,3]
[347292544,1735662640891,-587.06731227,0.00019452,3]
[347292546,1735662640900,-500.0,0.00019452,3]
[347292548,1735662640910,-500.0,0.00019452,3]
[347292550,1735662640919,-380.38786708,0.00019452,3]
[347292553,1735662640929,-500.0,0.00019452,3]
[347292555,1735662640939,-500.0,0.00019452,3]
[347292556,1735662640948,-188.0,0.00019452,2]
[347292558,1735662640958,-1742.86,0.00019452,3]
[347292560,1735662640968,-500.0,0.00019452,3]
[347292562,1735662640977,-503.62827865,0.00019452,3]
[347292564,1735662640986,-856.35,0.00019452,3]
[347292566,1735662640996,-500.0,0.00019452,3]
[347292569,1735662641006,-519.17158636,0.00019452,3]
[347292571,1735662641022,-500.0,0.00019452,3]
[347292574,1735662641037,-181.29679314,0.00019452,3]
[347292576,1735662641050,-1434.36,0.00019452,3]
[347292579,1735662641064,-2488.22,0.00019452,3]
[347292581,1735662641077,-500.0,0.00019452,3]
[347292582,1735662641090,-500.0,0.00019452,3]
[347292583,1735662641105,-1740.67,0.00019452,3]
[347292584,1735662641119,-500.0,0.00019452,3]
[347292585,1735662641134,-500.0,0.00019452,3]
[347292586,1735662641148,-539.03,0.00019452,3]
[347292587,1735662641160,-1044.99,0.00019452,3]
[347292588,1735662641172,-1735.88,0.00019452,3]
[347292589,1735662641187,-500.0,0.00019452,3]
[347292590,1735662641199,-500.0,0.00019452,3]
[347292591,1735662641211,-224.48763208,0.00019452,3]
[347292592,1735662641224,-500.0,0.00019452,3]
[347292593,1735662641237,-1193.26,0.00019452,3]
[347292594,1735662641250,-500.0,0.00019452,3]
[347292595,1735662641264,-500.0,0.00019452,3]
[347292596,1735662641278,-930.72,0.00019452,3]
[347292597,1735662641292,-500.0,0.00019452,3]
[347292598,1735662641307,-938.16,0.00019452,3]
[347292599,1735662641318,-730.35,0.00019452,3]
[347292600,1735662641330,-500.0,0.00019452,3]
[347292601,1735662641344,-1142.17,0.00019452,3]
[347292602,1735662641359,-1023.34,0.00019452,3]
[347292603,1735662641373,-500.0,0.00019452,3]
[347292605,1735662641384,-661.46,0.00019452,3]
[347292606,1735662641397,-500.0,0.00019452,3]
[347292607,1735662641412,-1070.42,0.00019452,3]
[347292608,1735662641423,-1262.96,0.00019452,3]
[347292609,1735662641434,-589.92,0.00019452,3]
[347292610,1735662641447,-1803.17,0.00019452,3]
[347292611,1735662641459,-500.0,0.00019452,3]
[347292612,1735662641470,-500.0,0.00019452,3]
[347292614,1735662641482,-500.0,0.00019452,3]
[347292615,1735662641493,-3968.83,0.00019452,3]
[347292616,1735662641506,-1255.69,0.00019452,3]
[347292617,1735662641518,-500.0,0.00019452,3]
[347292618,1735662641530,-500.0,0.00019452,3]
[347292619,1735662641542,-1236.91,0.00019452,3]
[347292620,1735662641554,-507.69576642,0.00019452,3]
[347292621,1735662641566,-500.0,0.00019452,3]
[347292622,1735662641577,-500.0,0.00019452,3]
[347292624,1735662641589,-500.0,0.00019452,3]
[347292626,1735662641601,-510.50663106,0.00019452,3]
[347292628,1735662641612,-514.34,0.00019452,3]
[347292629,1735662641624,-1076.36,0.00019452,3]
[347292630,1735662641635,-500.0,0.00019452,3]
[347292631,1735662641647,-500.0,0.00019452,3]
[347292632,1735662641658,-500.0,0.00019452,3]
[347292633,1735662641669,-500.0,0.00019452,3]
[347292634,1735662641681,-500.0,0.00019452,3]
[347292635,1735662641693,-1079.59,0.00019452,3]
[347292636,1735662641704,-500.0,0.00019452,3]
[347292637,1735662641715,-500.0,0.00019452,3]
[347292638,1735662641727,-500.0,0.00019452,3]
[347292639,1735662641738,-500.0,0.00019452,3]
[347292640,1735662641750,-519.47992898,0.00019452,3]
[347292641,1735662641766,-562.62,0.00019452,3]
[347292642,1735662641777,-989.65,0.00019452,3]
[347292643,1735662641789,-2103.77,0.00019452,3]
[347292644,1735662641802,-874.7,0.00019452,3]
[347292645,1735662641813,-7064.59,0.00019452,3]
[347292646,1735662641824,-500.0,0.00019452,3]
[347292647,1735662641837,-2550.38,0.00019452,3]
[347292648,1735662641849,-500.0,0.00019452,3]
[347292649,1735662641861,-500.0,0.00019452,3]
[347292650,1735662641872,-599.41,0.00019452,3]
[347292651,1735662641885,-1088.36,0.00019452,3]
[347292652,1735662641897,-500.0,0.00019452,3]
[347292653,1735662641909,-660.49,0.00019452,3]
[347292654,1735662641920,-500.0,0.00019452,3]
[347292655,1735662641932,-500.0,0.00019452,3]
[347292656,1735662641944,-2577.05,0.00019452,3]
[347292657,1735662641956,-57147.03,0.00019452,3]
[347292658,1735662641968,-500.0,0.00019452,3]
[347292659,1735662641979,-500.0,0.00019452,3]
[347292660,1735662641992,-2166.97,0.00019452,3]
[347292661,1735662642005,-500.0,0.00019452,3]
[347292662,1735662642015,-1475.83,0.00019452,3]
[347292663,1735662642025,-500.0,0.00019452,3]
[347292664,1735662642034,-500.0,0.00019452,3]
[347292665,1735662642044,-1016.35,0.00019452,3]